lending/lending_fUSD_20250819
["ID","MTS","AMOUNT","RATE_DAILY","PERIOD"]
[380154684,1755580243837,-250.0,0.00010821,2]
[380154686,1755580243847,-1680.0,0.00010821,2]
[380154689,1755580243856,-420.0,0.00010821,2]
[380154691,1755580243866,-5000.0,0.00010899,2]
[380154693,1755580243875,-232.77981358,0.00010899,2]
[380154695,1755580243885,-965.65,0.00010899,2]
[380154697,1755580243894,-232.77981353,0.00010899,2]
[380154699,1755580243904,-232.77981353,0.00010899,2]
[380154701,1755580243913,-232.77981353,0.00010899,2]
[380154703,1755580243923,-232.77981353,0.00010899,2]
[380154705,1755580243932,-232.77981353,0.000109,2]
[380154707,1755580243941,-232.77981353,0.000109,2]
[380154709,1755580243950,-232.77981353,0.000109,2]
[380154711,1755580243961,-232.77981353,0.000109,2]
[380154712,1755580243970,-2000.0,0.000109,2]
[380154714,1755580243979,-212.32473289,0.000109,2]
[380154717,1755580243989,-212.32473289,0.000109,2]
[380154719,1755580243999,-232.77981353,0.000109,2]
[380154721,1755580244008,-794.70248962,0.000109,2]
[380154723,1755580244017,-318.52536282,0.000109,2]
[380154725,1755580244027,-1008.0,0.000109,2]
[380154726,1755580244038,-8002.77879918,0.000109,2]
[380154729,1755580244049,-2071.35957172,0.000109,2]
[380154731,1755580244061,-171.33,0.00010929,2]
[380154733,1755580244071,-670.37576865,0.00010932,2]
[380154735,1755580244080,-151.789826,0.00010937,2]
[380154737,1755580244090,-151.0,0.00010937,2]
[380154739,1755580244099,-32320.38837361,0.00010945,2]
[380154741,1755580244109,-1432.0641232,0.00010947,2]
[380154743,1755580244118,-167.35983008,0.00010948,2]
[380154745,1755580244128,-395.0266295,0.00010949,2]
[380154747,1755580244138,-1432.0641232,0.00010951,2]
[380154749,1755580244148,-1432.0641232,0.00010952,2]
[380154751,1755580244158,-2192.52638191,0.00010952,2]
[380154753,1755580244168,-40112.15080326,0.00010953,2]
[380154755,1755580244177,-40112.15080326,0.00010955,2]
[380154757,1755580244187,-1966.71334235,0.00010955,2]
[380154759,1755580244196,-458.40919931,0.00010956,2]
[380154761,1755580244206,-14334.67547294,0.00010957,2]
[380154763,1755580244216,-14334.67547294,0.00010957,2]
[380154765,1755580244225,-1966.71334235,0.00010958,2]
[380154767,1755580244235,-150.0,0.00010959,2]
[380154769,1755580244249,-150.0,0.00010959,2]
[380154771,1755580244259,-200.0,0.00010959,2]
[380154773,1755580244268,-200.0,0.00010959,2]
[380154775,1755580244280,-200.0,0.00010959,2]
[380154777,1755580244290,-227.013717,0.00010959,2]
[380154779,1755580244300,-167.35983008,0.00010959,2]
[380154781,1755580244309,-167.35983008,0.0001096,2]
[380154783,1755580244319,-40112.15080326,0.00010965,2]
[380154785,1755580244329,-167.35983008,0.00010966,2]
[380154787,1755580244339,-1966.71334235,0.00010966,2]
[380154789,1755580244348,-2192.52638191,0.00010972,2]
[380154791,1755580244357,-500.0,0.00010973,2]
[380154793,1755580244366,-532.82561641,0.00010973,2]
[380154795,1755580244376,-500.0,0.00010973,2]
[380154797,1755580244385,-500.0,0.00010973,2]
[380154799,1755580244395,-500.69295411,0.00010973,2]
[380154801,1755580244405,-500.0,0.00010973,2]
[380154803,1755580244414,-270.18255645,0.00010973,2]
[380154805,1755580244423,-500.0,0.00010973,2]
[380154807,1755580244433,-500.70281584,0.00010973,2]
[380154809,1755580244443,-308.91279392,0.00010973,2]
[380154811,1755580244453,-500.0,0.00010973,2]
[380154813,1755580244463,-500.42414357,0.00010973,2]
[380154815,1755580244472,-500.0,0.00010973,2]
[380154817,1755580244481,-500.72224751,0.00010973,2]
[380154819,1755580244490,-211.78533184,0.00010973,2]
[380154820,1755580244499,-500.0,0.00010973,2]
[380154822,1755580244508,-167.594646,0.00010973,2]
[380154825,1755580244518,-2192.52638191,0.00010976,2]
[380154827,1755580244528,-2192.52638191,0.00010977,2]
[380154829,1755580244537,-1432.0641232,0.0001098,2]
[380154831,1755580244547,-45943.01366931,0.0001098,2]
[380154833,1755580244556,-151.0,0.0001098,2]
[380154835,1755580244566,-241.698561,0.0001098,2]
[380154837,1755580244575,-151.0,0.0001098,2]
[380154839,1755580244584,-151.0,0.0001098,2]
[380154841,1755580244593,-151.0,0.0001098,2]
[380154843,1755580244603,-151.0,0.0001098,2]
[380154845,1755580244612,-151.0,0.0001098,2]
[380154847,1755580244621,-151.0,0.0001098,2]
[380154849,1755580244630,-151.670537,0.0001098,2]
[380154851,1755580244639,-341.133391,0.0001098,2]
[380154853,1755580244648,-341.133391,0.0001098,2]
[380154855,1755580244657,-341.133391,0.0001098,2]
[380154857,1755580244666,-341.133391,0.0001098,2]
[380154859,1755580244675,-151.0,0.0001098,2]
[380154861,1755580244684,-151.0,0.0001098,2]
[380154899,1755580245045,-151.0,0.0001098,2]
[380154901,1755580245056,-199.7484,0.0001098,2]
[380154903,1755580245066,-151.0,0.0001098,2]
[380154905,1755580245075,-151.0,0.0001098,2]
[380154907,1755580245084,-151.0,0.0001098,2]
[380154909,1755580245094,-151.0,0.0001098,2]
[380154911,1755580245103,-151.0,0.0001098,2]
[380154913,1755580245113,-205.992513,0.0001098,2]
[380154915,1755580245122,-205.992513,0.0001098,2]
[380154917,1755580245132,-205.992513,0.0001098,2]
[380154919,1755580245141,-205.992513,0.0001098,2]
[380154921,1755580245150,-151.0,0.0001098,2]
[380154923,1755580245159,-269.208592,0.0001098,2]
[380154925,1755580245168,-269.208592,0.0001098,2]
[380154927,1755580245178,-269.208592,0.0001098,2]
[380154929,1755580245187,-269.208592,0.0001098,2]
[380154931,1755580245197,-780.935571,0.0001098,2]
[380154933,1755580245207,-780.935571,0.0001098,2]
[380154935,1755580245216,-780.935571,0.0001098,2]
[380154937,1755580245225,-780.935571,0.0001098,2]
[380154939,1755580245235,-151.0,0.0001098,2]
[380154941,1755580245244,-195.714416,0.0001098,2]
[380154943,1755580245253,-195.714416,0.0001098,2]
[380154945,1755580245263,-195.714416,0.0001098,2]
[380154947,1755580245272,-195.714416,0.0001098,2]
[380154949,1755580245282,-151.0,0.0001098,2]
[380154951,1755580245291,-151.0,0.0001098,2]
[380154953,1755580245301,-1337.798645,0.0001098,2]
[380154955,1755580245310,-448.825847,0.0001098,2]
[380154957,1755580245319,-1337.798645,0.0001098,2]
[380154959,1755580245329,-448.825847,0.0001098,2]
[380154961,1755580245339,-1337.798645,0.0001098,2]
[380154963,1755580245349,-448.825847,0.0001098,2]
[380154965,1755580245358,-1337.798645,0.0001098,2]
[380154967,1755580245367,-448.825847,0.0001098,2]
[380154969,1755580245377,-151.0,0.0001098,2]
[380154970,1755580245387,-151.0,0.0001098,2]
[380154971,1755580245396,-153.797339,0.0001098,2]
[380154972,1755580245406,-151.0,0.0001098,2]
[380154973,1755580245415,-151.0,0.0001098,2]
[380154974,1755580245424,-151.0,0.0001098,2]
[380154975,1755580245434,-151.0,0.0001098,2]
[380154976,1755580245444,-151.0,0.0001098,2]
[380154977,1755580245454,-332.138296,0.0001098,2]
[380154979,1755580245464,-151.0,0.0001098,2]
[380154981,1755580245473,-151.0,0.0001098,2]
[380154983,1755580245483,-166.029794,0.0001098,2]
[380154985,1755580245493,-151.0,0.0001098,2]
[380154988,1755580245502,-332.138296,0.0001098,2]
[380154989,1755580245511,-332.138296,0.0001098,2]
[380154991,1755580245521,-332.138296,0.0001098,2]
[380154993,1755580245530,-151.0,0.0001098,2]
[380154995,1755580245539,-151.0,0.0001098,2]
[380154998,1755580245549,-151.0,0.0001098,2]
[380155000,1755580245561,-151.0,0.0001098,2]
[380155002,1755580245570,-151.0,0.0001098,2]
[380155004,1755580245580,-151.0,0.0001098,2]
[380155006,1755580245589,-151.0,0.0001098,2]
[380155008,1755580245599,-151.0,0.0001098,2]
[380155010,1755580245608,-151.0,0.0001098,2]
[380155012,1755580245617,-151.0,0.0001098,2]
[380155014,1755580245627,-151.0,0.0001098,2]
[380155016,1755580245636,-244.320588,0.0001098,2]
[380155018,1755580245645,-306.778817,0.0001098,2]
[380155020,1755580245654,-306.778817,0.0001098,2]
[380155022,1755580245664,-306.778817,0.0001098,2]
[380155024,1755580245674,-151.0,0.0001098,2]
[380155026,1755580245683,-306.778817,0.0001098,2]
[380155028,1755580245692,-240.990654,0.0001098,2]
[380155030,1755580245702,-151.0,0.0001098,2]
[380155032,1755580245712,-151.0,0.0001098,2]
[380155034,1755580245721,-292.850705,0.0001098,2]
[380155036,1755580245731,-151.0,0.0001098,2]
[380155038,1755580245740,-151.0,0.0001098,2]
[380155040,1755580245750,-292.850705,0.0001098,2]
[380155042,1755580245762,-151.0,0.0001098,2]
[380155044,1755580245771,-292.850705,0.0001098,2]
[380155046,1755580245781,-151.0,0.0001098,2]
[380155048,1755580245790,-292.850705,0.0001098,2]
[380155050,1755580245801,-151.0,0.0001098,2]
[380155053,1755580245811,-151.0,0.0001098,2]
[380155055,1755580245821,-151.0,0.0001098,2]
[380155057,1755580245831,-151.0,0.0001098,2]
[380155059,1755580245841,-151.0,0.0001098,2]
[380155061,1755580245850,-151.0,0.0001098,2]
[380155063,1755580245859,-151.0,0.0001098,2]
[380155065,1755580245869,-151.0,0.0001098,2]
[380155067,1755580245878,-151.0,0.0001098,2]
[380155069,1755580245888,-204.813679,0.0001098,2]
[380155071,1755580245897,-191.865188,0.0001098,2]
[380155073,1755580245907,-151.0,0.0001098,2]
[380155075,1755580245916,-204.813679,0.0001098,2]
[380155077,1755580245925,-191.865188,0.0001098,2]
[380155079,1755580245934,-204.813679,0.0001098,2]
[380155081,1755580245944,-191.865188,0.0001098,2]
[380155083,1755580245953,-191.865188,0.0001098,2]
[380155085,1755580245962,-151.0,0.0001098,2]
[380155087,1755580245972,-204.813679,0.0001098,2]
[380155089,1755580245981,-151.0,0.0001098,2]
[380155091,1755580245990,-167.35983008,0.00010983,2]
[380155093,1755580246000,-2192.52638191,0.00010985,2]
[380155095,1755580246009,-274.9729954,0.00010986,2]
[380155097,1755580246019,-215.71525068,0.00010986,2]
[380155099,1755580246029,-157.19474416,0.00010986,2]
[380155101,1755580246038,-173.76485701,0.00010986,2]
[380155103,1755580246047,-1966.71334235,0.00010989,2]
[380155105,1755580246057,-2192.52638191,0.00010989,2]
[380155107,1755580246067,-2100.0,0.0001099,6]
[380155109,1755580246076,-3341.40426695,0.0001099,2]
[380155111,1755580246085,-315.571023,0.0001099,2]
[380155113,1755580246094,-315.571023,0.0001099,2]
[380155115,1755580246103,-315.571023,0.0001099,2]
[380155117,1755580246113,-2374.68729938,0.0001099,2]
[380155119,1755580246122,-2374.68729938,0.0001099,2]
[380155121,1755580246132,-2374.68729938,0.0001099,2]
[380155123,1755580246141,-10315.14839259,0.00010991,2]
[380155128,1755580246171,-369.79616076,0.00010991,2]
[380155144,1755580246328,-1154.4,0.00010991,2]
[380155145,1755580246354,-404.3835385,0.00010991,2]
[380155146,1755580246365,-2090.94738109,0.00010991,2]
[380155147,1755580246375,-1432.0641232,0.00010991,2]
[380155148,1755580246385,-2158.96380287,0.00010992,2]
[380155158,1755580248409,-379.13189039,0.00010184,2]
[380155159,1755580248422,-515.21410961,0.00010184,2]
[380155160,1755580248432,-3558.356677,0.0001098,2]
[380155161,1755580248441,-217.64504618,0.0001098,2]
[380155162,1755580248450,-270.69572264,0.0001098,2]
[380155163,1755580248462,-3558.356677,0.0001098,2]
[380155164,1755580248471,-21200.31447301,0.00010992,2]
[380155165,1755580248853,-5836.14302791,0.00010992,2]
[380155166,1755580248938,-408.30563646,0.00010992,2]
[380155167,1755580248950,-4747.25,0.00010992,2]
[380155169,1755580271143,207.08,8.228e-05,2]
[380155170,1755580506990,1243.8,9.5e-05,2]
[380155171,1755580614149,150.0,7.6e-05,2]
[380155172,1755580614481,150.0,8.78e-05,2]
[380155173,1755580872878,198.1622469,0.00012314,10]
[380155175,1755581045325,436.40228825,0.0002,120]
[380155176,1755581090485,153.88,9.308e-05,2]
[380155178,1755581134467,150.0,7.6e-05,2]
[380155179,1755581134615,150.0,8.78e-05,2]
[380155180,1755581185819,764.4067858,9e-05,2]
[380155181,1755581188775,478.59,9.27e-05,2]
[380155187,1755581346321,691.680652,9.464e-05,2]
[380155188,1755581423774,-189.97407924,9.571e-05,2]
[380155189,1755581423798,-400.95,9.572e-05,2]
[380155190,1755581423822,-5000.0,9.572e-05,2]
[380155206,1755581432024,-570.0,9.632e-05,2]
[380155207,1755581432060,-630.0,9.632e-05,2]
[380155208,1755581432070,-540.27,9.634e-05,2]
[380155209,1755581432081,-459.73,9.634e-05,2]
[380155210,1755581432090,-174.15,9.747e-05,2]
[380155211,1755581432102,-26.46123544,9.777e-05,2]
[380155212,1755581432113,-273.53876456,9.777e-05,2]
[380155213,1755581432123,-174.15,9.779e-05,2]
[380155214,1755581432135,-196.01,9.786e-05,2]
[380155215,1755581432144,-1000.0,9.811e-05,2]
[380155216,1755581432153,-174.15,9.812e-05,2]
[380155217,1755581432163,-174.15,9.844e-05,2]
[380155218,1755581432173,-151.0,9.877e-05,2]
[380155219,1755581432183,-151.0,9.877e-05,2]
[380155220,1755581432192,-151.0,9.877e-05,2]
[380155221,1755581432202,-151.0,9.877e-05,2]
[380155222,1755581432211,-151.0,9.877e-05,2]
[380155223,1755581432222,-215.79938453,9.877e-05,2]
[380155224,1755581432231,-151.0,9.877e-05,2]
[380155225,1755581432240,-151.0,9.877e-05,2]
[380155226,1755581432249,-151.0,9.877e-05,2]
[380155227,1755581432259,-151.0,9.877e-05,2]
[380155228,1755581432268,-151.0,9.877e-05,2]
[380155229,1755581432278,-151.0,9.877e-05,2]
[380155230,1755581432288,-150.0,9.888e-05,2]
[380155231,1755581432297,-169.8730439,9.888e-05,2]
[380155232,1755581432306,-150.00000001,9.888e-05,2]
[380155233,1755581432315,-150.0,9.888e-05,2]
[380155234,1755581432325,-150.0,9.888e-05,2]
[380155235,1755581432334,-150.0,9.888e-05,2]
[380155236,1755581432343,-260.93339755,9.888e-05,2]
[380155237,1755581432352,-150.0,9.888e-05,2]
[380155238,1755581432362,-150.0,9.888e-05,2]
[380155239,1755581432371,-150.0,9.888e-05,2]
[380155240,1755581432381,-200.0,9.9e-05,2]
[380155241,1755581432390,-150.0,9.97e-05,2]
[380155242,1755581432400,-150.0,9.999e-05,2]
[380155243,1755581432409,-36025.51990418,0.0001,2]
[380155244,1755581432418,-200.0,0.0001,3]
[380155245,1755581432427,-151.0,0.0001,2]
[380155246,1755581432436,-151.0,0.0001,2]
[380155248,1755581432445,-71.57635423,0.00010032,2]
[380155250,1755581432457,-132.17364577,0.00010032,2]
[380155252,1755581432467,-201.6,0.00010032,2]
[380155254,1755581432478,-300.08,0.00010032,2]
[380155256,1755581432488,-203.84,0.00010032,2]
[380155257,1755581432497,-151.2,0.00010032,2]
[380155258,1755581432506,-150.18,0.00010032,2]
[380155259,1755581432515,-29.8863106,0.00010032,2]
[380155260,1755581432531,-170.9736894,0.00010032,2]
[380155261,1755581432539,-279.0263106,0.00010032,2]
[380155262,1755581432550,-22.6636894,0.00010032,2]
[380155263,1755581432559,-202.63,0.00010032,2]
[380155264,1755581432569,-152.38,0.00010032,2]
[380155265,1755581432578,-202.73,0.00010032,2]
[380155266,1755581432588,-200.8,0.00010032,2]
[380155267,1755581432597,-305.43,0.00010032,2]
[380155268,1755581432606,-71.61542936,0.00010079,2]
[380155269,1755581432617,-88.38457064,0.00010079,2]
[380155270,1755581432627,-277.35679052,0.00010079,2]
[380155271,1755581432636,-721.12765535,0.00010079,2]
[380155272,1755581432645,-150.76,0.00010084,2]
[380155273,1755581432656,-151.7,0.00010084,2]
[380155274,1755581432666,-201.36,0.00010084,2]
[380155275,1755581432675,-203.11,0.00010084,2]
[380155276,1755581432685,-301.61,0.00010084,2]
[380155277,1755581432695,-201.19,0.00010084,2]
[380155278,1755581432705,-201.57,0.00010084,2]
[380155279,1755581432714,-151.84,0.00010084,2]
[380155280,1755581432725,-202.86,0.00010084,2]
[380155281,1755581432734,-300.11,0.00010084,2]
[380155282,1755581432744,-151.43,0.00010084,2]
[380155283,1755581432753,-202.88,0.00010084,2]
[380155284,1755581432762,-151.55,0.00010084,2]
[380155285,1755581432772,-203.72,0.00010084,2]
[380155286,1755581432781,-301.54,0.00010084,2]
[380155287,1755581432791,-202.74,0.00010084,2]
[380155288,1755581432801,-201.53,0.00010084,2]
[380155289,1755581432811,-200.49,0.00010084,2]
[380155290,1755581432823,-305.58,0.00010084,2]
[380155291,1755581432833,-500.0,0.000101,3]
[380155292,1755581432842,-698.74098349,0.00010103,2]
[380155293,1755581432884,-629.02069343,0.00010103,2]
[380155294,1755581435777,-640.46922308,0.00010103,2]
[380155295,1755581435786,-248.05,0.00010151,2]
[380155297,1755581435796,-201.69,0.00010184,2]
[380155299,1755581435805,-202.38,0.00010184,2]
[380155301,1755581435815,-150.09,0.00010184,2]
[380155303,1755581435825,-203.89,0.00010184,2]
[380155305,1755581435834,-152.53,0.00010184,2]
[380155307,1755581435844,-305.19,0.00010184,2]
[380155309,1755581435855,-202.29,0.00010184,2]
[380155311,1755581435865,-150.98,0.00010184,2]
[380155313,1755581435875,-203.26,0.00010184,2]
[380155315,1755581435885,-202.66,0.00010184,2]
[380155317,1755581435894,-304.51,0.00010184,2]
[380155319,1755581435903,-203.92,0.00010184,2]
[380155321,1755581435912,-203.31,0.00010184,2]
[380155323,1755581435921,-152.09,0.00010184,2]
[380155325,1755581435930,-151.61,0.00010184,2]
[380155327,1755581435940,-301.75,0.00010184,2]
[380155329,1755581435948,-201.39,0.00010184,2]
[380155331,1755581435957,-150.61,0.00010184,2]
[380155333,1755581435967,-200.06,0.00010184,2]
[380155335,1755581435978,-200.8,0.00010184,2]
[380155336,1755581435987,-300.01,0.00010184,2]
[380155339,1755581435997,-843.87140665,0.00010184,2]
[380155341,1755581436006,-212.02104404,0.00010184,2]
[380155343,1755581436016,-1132.41,0.00010192,2]
[380155345,1755581436025,-700.0,0.000102,3]
[380155347,1755581436034,-458.43483364,0.00010201,2]
[380155349,1755581436043,-160.0,0.00010202,2]
[380155351,1755581436052,-151.0,0.00010203,2]
[380155353,1755581436062,-762.560617,0.00010203,2]
[380155355,1755581436071,-762.560617,0.00010203,2]
[380155357,1755581436080,-762.560617,0.00010203,2]
[380155359,1755581436090,-762.560617,0.00010203,2]
[380155361,1755581436102,-243.839269,0.00010203,2]
[380155362,1755581436111,-243.839269,0.00010203,2]
[380155364,1755581436120,-243.839269,0.00010203,2]
[380155366,1755581436129,-243.839269,0.00010203,2]
[380155367,1755581436143,-151.0,0.00010203,2]
[380155368,1755581436153,-151.0,0.00010203,2]
[380155369,1755581436162,-239.478409,0.00010203,2]
[380155370,1755581436173,-239.478409,0.00010203,2]
[380155371,1755581436182,-239.478409,0.00010203,2]
[380155372,1755581436191,-239.478409,0.00010203,2]
[380155373,1755581436200,-151.0,0.00010203,2]
[380155374,1755581436210,-151.0,0.00010203,2]
[380155375,1755581436219,-359.060678,0.00010203,2]
[380155376,1755581436228,-359.060678,0.00010203,2]
[380155377,1755581436238,-359.060678,0.00010203,2]
[380155378,1755581436249,-359.060678,0.00010203,2]
[380155379,1755581436260,-151.0,0.00010203,2]
[380155380,1755581436270,-151.0,0.00010203,2]
[380155381,1755581436280,-151.0,0.00010203,2]
[380155382,1755581436292,-151.0,0.00010203,2]
[380155383,1755581436302,-151.0,0.00010203,2]
[380155384,1755581436313,-151.0,0.00010203,2]
[380155385,1755581436323,-159.973934,0.00010203,2]
[380155386,1755581436332,-265.710637,0.00010203,2]
[380155387,1755581436341,-151.0,0.00010203,2]
[380155388,1755581436350,-265.710637,0.00010203,2]
[380155389,1755581436359,-151.0,0.00010203,2]
[380155390,1755581436371,-265.710637,0.00010203,2]
[380155391,1755581436380,-151.0,0.00010203,2]
[380155392,1755581436389,-265.710637,0.00010203,2]
[380155393,1755581436399,-151.0,0.00010203,2]
[380155394,1755581436408,-151.0,0.00010203,2]
[380155395,1755581436418,-151.0,0.00010203,2]
[380155396,1755581436427,-151.0,0.00010203,2]
[380155397,1755581436436,-151.0,0.00010203,2]
[380155398,1755581436445,-1656.0,0.00010203,2]
[380155399,1755581436454,-599.0,0.00010203,2]
[380155400,1755581436462,-1297.0,0.00010203,2]
[380155401,1755581436471,-566.0,0.00010203,2]
[380155402,1755581436480,-894.0,0.00010203,2]
[380155403,1755581436490,-1172.0,0.00010203,2]
[380155404,1755581436499,-2029.0,0.00010203,2]
[380155405,1755581436508,-904.0,0.00010203,2]
[380155406,1755581436518,-1255.0,0.00010203,2]
[380155407,1755581436527,-3371.0,0.00010203,2]
[380155408,1755581436536,-4152.0,0.00010203,2]
[380155409,1755581436545,-644.0818,0.00010238,2]
[380155410,1755581436554,-250.29801168,0.0001027,2]
[380155411,1755581436563,-1000.0,0.000103,3]
[380155412,1755581436572,-1300.0,0.000104,3]
[380155413,1755581436582,-265.710637,0.000104,2]
[380155414,1755581436591,-151.0,0.000104,2]
[380155415,1755581436600,-265.710637,0.000104,2]
[380155416,1755581436610,-151.0,0.000104,2]
[380155417,1755581436619,-265.710637,0.000104,2]
[380155418,1755581436628,-151.0,0.000104,2]
[380155419,1755581436637,-265.710637,0.000104,2]
[380155420,1755581436646,-151.0,0.000104,2]
[380155421,1755581436656,-181.058754,0.000104,2]
[380155422,1755581436668,-297.588076,0.000104,2]
[380155423,1755581436679,-151.0,0.000104,2]
[380155424,1755581436689,-151.0,0.000104,2]
[380155425,1755581436698,-245.423053,0.000104,2]
[380155426,1755581436707,-245.423053,0.000104,2]
[380155427,1755581436716,-245.423053,0.000104,2]
[380155428,1755581436726,-151.0,0.000104,2]
[380155429,1755581436735,-151.0,0.000104,2]
[380155430,1755581436744,-245.423053,0.000104,2]
[380155431,1755581436754,-151.0,0.000104,2]
[380155432,1755581436763,-222.234074,0.000104,2]
[380155433,1755581436772,-170.013725,0.000104,2]
[380155434,1755581436781,-234.280564,0.000104,2]
[380155435,1755581436791,-151.0,0.000104,2]
[380155436,1755581436800,-234.280564,0.000104,2]
[380155437,1755581436810,-234.280564,0.000104,2]
[380155438,1755581436819,-234.280564,0.000104,2]
[380155439,1755581436828,-151.0,0.000104,2]
[380155440,1755581436837,-151.0,0.000104,2]
[380155441,1755581436848,-151.0,0.000104,2]
[380155442,1755581436857,-151.0,0.000104,2]
[380155443,1755581436867,-151.0,0.000104,2]
[380155444,1755581436876,-150.0,0.00010437,2]
[380155445,1755581436885,-150.0,0.00010437,2]
[380155446,1755581436895,-250.0,0.00010464,2]
[380155447,1755581436904,-5000.0,0.00010464,2]
[380155448,1755581436914,-151.0,0.0001049,2]
[380155449,1755581436923,-151.0,0.0001049,2]
[380155450,1755581436932,-359.060678,0.0001049,2]
[380155451,1755581436942,-359.060678,0.0001049,2]
[380155452,1755581436951,-359.060678,0.0001049,2]
[380155453,1755581436960,-359.060678,0.0001049,2]
[380155454,1755581436969,-151.0,0.0001049,2]
[380155455,1755581436981,-151.0,0.0001049,2]
[380155456,1755581436990,-151.0,0.0001049,2]
[380155457,1755581437000,-151.0,0.0001049,2]
[380155458,1755581437011,-151.0,0.0001049,2]
[380155459,1755581437020,-151.0,0.0001049,2]
[380155460,1755581437029,-2842.776,0.00010498,2]
[380155461,1755581437039,-168.643,0.00010498,2]
[380155462,1755581437048,-200.0,0.000105,3]
[380155463,1755581437057,-5000.0,0.00010517,2]
[380155464,1755581437067,-500.0,0.00010517,2]
[380155465,1755581437076,-300.0,0.00010517,2]
[380155466,1755581437086,-5000.0,0.00010517,2]
[380155467,1755581437098,-693.84755806,0.00010567,2]
[380155468,1755581437108,-1393.92573571,0.00010595,2]
[380155469,1755581437187,-286.07426429,0.00010595,2]
[380155470,1755581437196,-234.9853,0.00010597,2]
[380155471,1755581437206,-200.0,0.000106,3]
[380155472,1755581437215,-1425.0,0.0001062,2]
[380155473,1755581437225,-530.97408099,0.00010649,2]
[380155474,1755581437438,-2026.14204898,0.00010203,2]
[380155630,1755581439680,-1269.4002812,0.00010203,2]
[380155639,1755581439751,-2795.45766982,0.00010203,2]
[380155641,1755581439761,-894.02591901,0.00010649,2]
[380155643,1755581439771,-1425.0,0.0001065,2]
[380155645,1755581439780,-151.0,0.0001065,2]
[380155647,1755581439790,-151.0,0.0001065,2]
[380155649,1755581439800,-151.0,0.0001065,2]
[380155651,1755581439809,-151.0,0.0001065,2]
[380155653,1755581439819,-153.49215,0.0001065,2]
[380155655,1755581439829,-163.850943,0.0001065,2]
[380155657,1755581439839,-151.0,0.0001065,2]
[380155659,1755581439848,-153.49215,0.0001065,2]
[380155661,1755581439859,-163.850943,0.0001065,2]
[380155663,1755581439869,-151.0,0.0001065,2]
[380155665,1755581439879,-151.0,0.0001065,2]
[380155667,1755581439889,-153.49215,0.0001065,2]
[380155669,1755581439900,-151.0,0.0001065,2]
[380155671,1755581439912,-163.850943,0.0001065,2]
[380155673,1755581439923,-153.49215,0.0001065,2]
[380155676,1755581439932,-1425.0,0.00010657,2]
[380155679,1755581439942,-1425.0,0.00010665,2]
[380155681,1755581439952,-151.0,0.00010667,2]
[380155683,1755581439961,-762.560617,0.00010667,2]
[380155685,1755581439971,-762.560617,0.00010667,2]
[380155687,1755581439981,-762.560617,0.00010667,2]
[380155689,1755581439991,-762.560617,0.00010667,2]
[380155691,1755581440000,-243.839269,0.00010667,2]
[380155693,1755581440010,-243.839269,0.00010667,2]
[380155696,1755581440019,-243.839269,0.00010667,2]
[380155698,1755581440029,-243.839269,0.00010667,2]
[380155700,1755581440038,-151.0,0.00010667,2]
[380155702,1755581440048,-151.0,0.00010667,2]
[380155704,1755581440058,-151.0,0.00010667,2]
[380155706,1755581440068,-185.262572,0.00010667,2]
[380155707,1755581440078,-151.0,0.00010667,2]